Workbook

Sheet Financial Model
A1: Assumptions
B2: Subprime Debt Assumptions
D3: Rate Charged on Sub-prime Loans | E3: =F3/1000 -> 0.074 | F3: 74 | K3: Target | L3: Difference
D4: Subprime Repayment Years | E4: 30 | I4: Equity IRR | J4: =H65 -> FALSE
D5: Initial PD | E5: 0.1969247321 | I5: Debt IRR | J5: =H68 -> 0.03499281353 | K5: 0.0349999999 | L5: =J5-K5 -> -7.186370145e-06
D6: Years of High Default | E6: 7
D7: Stable PD | E7: 0.01
D8: LGD | E8: =F8/100 -> 0.41 | F8: 41
D9: Delay in Recoveries | E9: 4
B10: Financial Structure Assumptions
D11: Amount of Subprime Loans | E11: 1000
D12: Loans/Equity | E12: 5
D13: Equity to Assets | E13: =1/E12 -> 0.2
D14: Interest Rate on Top-tier Debt | E14: =F14/1000 -> 0.041 | F14: 41
D15: Fees | E15: 0.07
B16: Time Line
D17: Period | H17: 0 | I17: =H17+1 -> 1 | J17: =I17+1 -> 2 | K17: 3 | L17: 4 | M17: 5 | N17: 6 | O17: 7 | P17: 8 | Q17: 9 | R17: 10 | S17: 11 | T17: 12 | U17: 13 | V17: 14 | W17: 15 | X17: 16 | Y17: 17 | Z17: 18 | AA17: 19 | AB17: 20 | AC17: 21 | AD17: 22 | AE17: 23 | AF17: 24 | AG17: 25 | AH17: 26 | AI17: 27 | AJ17: 28 | AK17: 29 | AL17: 30
D18: High Default Period | F18: =E6 -> 7 | I18: =I17<=$F$18 -> TRUE | J18: =J17<=$F$18 -> TRUE | K18: TRUE | L18: TRUE | M18: TRUE | N18: TRUE | O18: TRUE | P18: FALSE | Q18: FALSE | R18: FALSE | S18: FALSE | T18: FALSE | U18: FALSE | V18: FALSE | W18: FALSE | X18: FALSE | Y18: FALSE | Z18: FALSE | AA18: FALSE | AB18: FALSE | AC18: FALSE | AD18: FALSE | AE18: FALSE | AF18: FALSE | AG18: FALSE | AH18: FALSE | AI18: FALSE | AJ18: FALSE | AK18: FALSE | AL18: FALSE
B19: Annual Assumptions
D20: PD | F20: =E5 -> 0.1969247321 | G20: =E7 -> 0.01 | I20: =I18*$F$20+NOT(I18)*$G$20 -> 0.1969247321 | J20: =J18*$F$20+NOT(J18)*$G$20 -> 0.1969247321 | K20: 0.1969247321 | L20: 0.1969247321 | M20: 0.1969247321 | N20: 0.1969247321 | O20: 0.1969247321 | P20: 0.01 | Q20: 0.01 | R20: 0.01 | S20: 0.01 | T20: 0.01 | U20: 0.01 | V20: 0.01 | W20: 0.01 | X20: 0.01 | Y20: 0.01 | Z20: 0.01 | AA20: 0.01 | AB20: 0.01 | AC20: 0.01 | AD20: 0.01 | AE20: 0.01 | AF20: 0.01 | AG20: 0.01 | AH20: 0.01 | AI20: 0.01 | AJ20: 0.01 | AK20: 0.01 | AL20: 0.01
D21: Cumulative Defaults Index | H21: 1 | I21: =H21*(1+I20) -> 1.196924732 | J21: =I21*(1+J20) -> 1.432628814 | K21: 1.71474886 | L21: 2.052425319 | M21: 2.456598625 | N21: 2.940363651 | O21: 3.519393976 | P21: 3.554587915 | Q21: 3.590133794 | R21: 3.626035132 | S21: 3.662295484 | T21: 3.698918439 | U21: 3.735907623 | V21: 3.773266699 | W21: 3.810999366 | X21: 3.84910936 | Y21: 3.887600453 | Z21: 3.926476458 | AA21: 3.965741223 | AB21: 4.005398635 | AC21: 4.045452621 | AD21: 4.085907147 | AE21: 4.126766219 | AF21: 4.168033881 | AG21: 4.20971422 | AH21: 4.251811362 | AI21: 4.294329476 | AJ21: 4.33727277 | AK21: 4.380645498 | AL21: 4.424451953
D22: Cumulative Defaults | I22: =1-I23 -> 0.1969247321 | J22: =1-J23 -> 0.355070114 | K22: 0.482072759 | L22: 0.5840654422 | M22: 0.6659732435 | N22: 0.731751373 | O22: 0.784576162 | P22: 0.7867304004 | Q22: 0.7888630964 | R22: 0.7909744654 | S22: 0.7930647208 | T22: 0.7951340736 | U22: 0.7971827328 | V22: 0.7992109055 | W22: 0.8012187964 | X22: 0.8032066085 | Y22: 0.8051745424 | Z22: 0.807122797 | AA22: 0.809051569 | AB22: 0.8109610533 | AC22: 0.8128514428 | AD22: 0.8147229284 | AE22: 0.8165756991 | AF22: 0.8184099421 | AG22: 0.8202258427 | AH22: 0.8220235842 | AI22: 0.8238033484 | AJ22: 0.8255653149 | AK22: 0.8273096618 | AL22: 0.8290365651
D23: Loans being paid | H23: 1 | I23: =H23*(1-I20) -> 0.8030752679 | J23: =I23*(1-J20) -> 0.644929886 | K23: 0.517927241 | L23: 0.4159345578 | M23: 0.3340267565 | N23: 0.268248627 | O23: 0.215423838 | P23: 0.2132695996 | Q23: 0.2111369036 | R23: 0.2090255346 | S23: 0.2069352792 | T23: 0.2048659264 | U23: 0.2028172672 | V23: 0.2007890945 | W23: 0.1987812036 | X23: 0.1967933915 | Y23: 0.1948254576 | Z23: 0.192877203 | AA23: 0.190948431 | AB23: 0.1890389467 | AC23: 0.1871485572 | AD23: 0.1852770716 | AE23: 0.1834243009 | AF23: 0.1815900579 | AG23: 0.1797741573 | AH23: 0.1779764158 | AI23: 0.1761966516 | AJ23: 0.1744346851 | AK23: 0.1726903382 | AL23: 0.1709634349
B24: Revenues
C25: Subprime Loan Balance
D26: Opening Balance | I26: =H29 -> 1000 | J26: =I29 -> 795.1662479 | K26: 631.7567953 | L26: 501.4646495 | M26: 397.639229 | N26: 314.9573487 | O26: 249.1593843 | P26: 196.8377282 | Q26: 191.4073646 | R26: 185.8122994 | S26: 180.0403253 | T26: 174.0784807 | U26: 167.9130017 | V26: 161.5292714 | W26: 154.9117654 | X26: 148.0439945 | Y26: 140.9084432 | Z26: 133.4865051 | AA26: 125.7584133 | AB26: 117.7031669 | AC26: 109.2984528 | AD26: 100.5205627 | AE26: 91.34430431 | AF26: 81.74290774 | AG26: 71.6879252 | AH26: 61.14912484 | AI26: 50.09437777 | AJ26: 38.4895378 | AK26: 26.29831375 | AL26: 13.4821336
D27: Less: Repayments | F27: =E4 -> 30 | I27: =PPMT($F$30,I17,$F$27,-$H$29)*I23 -> 7.909020076 | J27: =PPMT($F$30,J17,$F$27,-$H$29)*J23 -> 6.821552259 | K27: 5.883608182 | L27: 5.074628753 | M27: 4.3768817 | N27: 3.775072887 | O27: 3.256011078 | P27: 3.461986339 | Q27: 3.680991594 | R27: 3.913851123 | S27: 4.161441345 | T27: 4.424694124 | U27: 4.704600275 | V27: 5.002213288 | W27: 5.318653301 | X27: 5.655111308 | Y27: 6.01285365 | Z27: 6.393226772 | AA27: 6.797662297 | AB27: 7.227682414 | AC27: 7.684905604 | AD27: 8.171052732 | AE27: 8.687953528 | AF27: 9.237553468 | AG27: 9.8219211 | AH27: 10.44325583 | AI27: 11.10389619 | AJ27: 11.80632867 | AK27: 12.55319702 | AL27: 13.34731226
D28: Less: Default | I28: =I26*I20 -> 196.9247321 | J28: =J26*J20 -> 156.5879003 | K28: 124.4085376 | L28: 98.75079173 | M28: 78.30499863 | N28: 62.0228915 | O28: 49.06564499 | P28: 1.968377282 | Q28: 1.914073646 | R28: 1.858122994 | S28: 1.800403253 | T28: 1.740784807 | U28: 1.679130017 | V28: 1.615292714 | W28: 1.549117654 | X28: 1.480439945 | Y28: 1.409084432 | Z28: 1.334865051 | AA28: 1.257584133 | AB28: 1.177031669 | AC28: 1.092984528 | AD28: 1.005205627 | AE28: 0.9134430431 | AF28: 0.8174290774 | AG28: 0.716879252 | AH28: 0.6114912484 | AI28: 0.5009437777 | AJ28: 0.384895378 | AK28: 0.2629831375 | AL28: 0.134821336
D29: Closing Balance | H29: =E11 -> 1000 | I29: =I26-I27-I28 -> 795.1662479 | J29: =J26-J27-J28 -> 631.7567953 | K29: 501.4646495 | L29: 397.639229 | M29: 314.9573487 | N29: 249.1593843 | O29: 196.8377282 | P29: 191.4073646 | Q29: 185.8122994 | R29: 180.0403253 | S29: 174.0784807 | T29: 167.9130017 | U29: 161.5292714 | V29: 154.9117654 | W29: 148.0439945 | X29: 140.9084432 | Y29: 133.4865051 | Z29: 125.7584133 | AA29: 117.7031669 | AB29: 109.2984528 | AC29: 100.5205627 | AD29: 91.34430431 | AE29: 81.74290774 | AF29: 71.6879252 | AG29: 61.14912484 | AH29: 50.09437777 | AI29: 38.4895378 | AJ29: 26.29831375 | AK29: 13.4821336 | AL29: -4.385380947e-15
D30: Interest Income | F30: =E3 -> 0.074 | I30: =I26*$F$30 -> 74 | J30: =J26*$F$30 -> 58.84230234 | K30: 46.75000285 | L30: 37.10838406 | M30: 29.42530295 | N30: 23.3068438 | O30: 18.43779444 | P30: 14.56599189 | Q30: 14.16414498 | R30: 13.75011015 | S30: 13.32298407 | T30: 12.88180757 | U30: 12.42556213 | V30: 11.95316609 | W30: 11.46347064 | X30: 10.95525559 | Y30: 10.4272248 | Z30: 9.87800138 | AA30: 9.306122585 | AB30: 8.71003435 | AC30: 8.088085507 | AD30: 7.438521638 | AE30: 6.759478519 | AF30: 6.048975173 | AG30: 5.304906465 | AH30: 4.525035238 | AI30: 3.706983955 | AJ30: 2.848225797 | AK30: 1.946075218 | AL30: 0.9976778862
C31: Recoveries of Defaults
D32: Default | I32: =I28 -> 196.9247321 | J32: =J28 -> 156.5879003 | K32: 124.4085376 | L32: 98.75079173 | M32: 78.30499863 | N32: 62.0228915 | O32: 49.06564499 | P32: 1.968377282 | Q32: 1.914073646 | R32: 1.858122994 | S32: 1.800403253 | T32: 1.740784807 | U32: 1.679130017 | V32: 1.615292714 | W32: 1.549117654 | X32: 1.480439945 | Y32: 1.409084432 | Z32: 1.334865051 | AA32: 1.257584133 | AB32: 1.177031669 | AC32: 1.092984528 | AD32: 1.005205627 | AE32: 0.9134430431 | AF32: 0.8174290774 | AG32: 0.716879252 | AH32: 0.6114912484 | AI32: 0.5009437777 | AJ32: 0.384895378 | AK32: 0.2629831375 | AL32: 0.134821336
D33: Loss on Default | F33: =1-E8 -> 0.59 | I33: =I32*$F$33 -> 116.1855919 | J33: =J32*$F$33 -> 92.38686118 | K33: 73.40103721 | L33: 58.26296712 | M33: 46.19994919 | N33: 36.59350598 | O33: 28.94873054 | P33: 1.161342597 | Q33: 1.129303451 | R33: 1.096292566 | S33: 1.062237919 | T33: 1.027063036 | U33: 0.9906867102 | V33: 0.9530227014 | W33: 0.913979416 | X33: 0.8734595674 | Y33: 0.831359815 | Z33: 0.7875703803 | AA33: 0.7419746386 | AB33: 0.6944486846 | AC33: 0.6448608715 | AD33: 0.5930713198 | AE33: 0.5389313954 | AF33: 0.4822831557 | AG33: 0.4229587587 | AH33: 0.3607798366 | AI33: 0.2955568288 | AJ33: 0.227088273 | AK33: 0.1551600511 | AL33: 0.07954458822
D34: Delayed Recoveries | F34: =E9 -> 4 | I34: =IF(I17>=$F$34,OFFSET(I33,0,-$F$34)) -> FALSE | J34: =IF(J17>=$F$34,OFFSET(J33,0,-$F$34)) -> FALSE | K34: FALSE | L34: 0 | M34: 116.1855919 | N34: 92.38686118 | O34: 73.40103721 | P34: 58.26296712 | Q34: 46.19994919 | R34: 36.59350598 | S34: 28.94873054 | T34: 1.161342597 | U34: 1.129303451 | V34: 1.096292566 | W34: 1.062237919 | X34: 1.027063036 | Y34: 0.9906867102 | Z34: 0.9530227014 | AA34: 0.913979416 | AB34: 0.8734595674 | AC34: 0.831359815 | AD34: 0.7875703803 | AE34: 0.7419746386 | AF34: 0.6944486846 | AG34: 0.6448608715 | AH34: 0.5930713198 | AI34: 0.5389313954 | AJ34: 0.4822831557 | AK34: 0.4229587587 | AL34: 0.3607798366
B35: Sources and Uses
C36: Uses of Funds
D37: Purchase of Subprime Loans | H37: =H29 -> 1000
D38: Fees | F38: =E15 -> 0.07 | H38: =H37*F38 -> 70
D39: Total Uses | H39: =SUM(H37:H38) -> 1070
C41: Sources of Funds
D42: Debt | H42: =H39-H43 -> 856 | I42: =H42/H44 -> 0.8
D43: Equity | H43: =H39/E12 -> 214 | I43: =H43/H39 -> 0.2
D44: Total Souces | H44: =SUM(H42:H43) -> 1070 | I44: =H44/H44 -> 1
B46: Debt Schedule - Top-tier AAA Debt
C47: Opening Balance | I47: =H50 -> 856 | J47: =I50 -> 809.1869799 | K47: 776.6997915 | L47: 755.9108719 | M47: 744.7202048 | N47: 625.2659567 | O47: 531.433083 | P47: 458.1269967 | Q47: 400.6192582 | R47: 352.9995621 | S47: 313.2150769 | T47: 279.623739 | U47: 272.6204681 | V47: 265.5384414 | W47: 258.3738456 | X47: 251.1228114 | Y47: 243.7814167 | Z47: 236.3456896 | AA47: 228.811612 | AB47: 221.1751238 | AC47: 213.4321276 | AD47: 205.5784939 | AE47: 197.6100674 | AF47: 189.5226735 | AG47: 181.3121257 | AH47: 172.9742345 | AI47: 164.5048157 | AJ47: 155.8997016 | AK47: 147.1547517 | AL47: 138.2658656
C48: Add: Defaults on Interest | I48: =I51-I58 -> 0 | J48: =J51-J58 -> 0 | K48: 0 | L48: 0 | M48: 0 | N48: 0 | O48: 0 | P48: 0 | Q48: 0 | R48: 0 | S48: 0 | T48: 0 | U48: 0 | V48: 0 | W48: 0 | X48: 0 | Y48: 0 | Z48: 0 | AA48: 0 | AB48: 0 | AC48: 0 | AD48: 0 | AE48: 0 | AF48: 0 | AG48: 0 | AH48: 0 | AI48: 0 | AJ48: 0 | AK48: 0 | AL48: 0
C49: Less: Repayment | I49: =I60 -> 46.81302008 | J49: =J60 -> 32.48718843 | K49: 20.78891958 | L49: 11.19066707 | M49: 119.4542482 | N49: 93.83287364 | O49: 73.30608632 | P49: 57.50773849 | Q49: 47.61969618 | R49: 39.78448521 | S49: 33.59133781 | T49: 7.003270988 | U49: 7.082026663 | V49: 7.164595843 | W49: 7.251034193 | X49: 7.341394669 | Y49: 7.435727074 | Z49: 7.534077579 | AA49: 7.636488205 | AB49: 7.742996254 | AC49: 7.853633695 | AD49: 7.968426501 | AE49: 8.087393923 | AF49: 8.210547714 | AG49: 8.337891281 | AH49: 8.469418774 | AI49: 8.6051141 | AJ49: 8.744949853 | AK49: 8.888886172 | AL49: 9.036869495
C50: Closing Balance | H50: =H42 -> 856 | I50: =I47+I48-I49 -> 809.1869799 | J50: =J47+J48-J49 -> 776.6997915 | K50: 755.9108719 | L50: 744.7202048 | M50: 625.2659567 | N50: 531.433083 | O50: 458.1269967 | P50: 400.6192582 | Q50: 352.9995621 | R50: 313.2150769 | S50: 279.623739 | T50: 272.6204681 | U50: 265.5384414 | V50: 258.3738456 | W50: 251.1228114 | X50: 243.7814167 | Y50: 236.3456896 | Z50: 228.811612 | AA50: 221.1751238 | AB50: 213.4321276 | AC50: 205.5784939 | AD50: 197.6100674 | AE50: 189.5226735 | AF50: 181.3121257 | AG50: 172.9742345 | AH50: 164.5048157 | AI50: 155.8997016 | AJ50: 147.1547517 | AK50: 138.2658656 | AL50: 129.2289961
C51: Interest Expense | F51: =E14 -> 0.041 | I51: =I47*$F$51 -> 35.096 | J51: =J47*$F$51 -> 33.17666618 | K51: 31.84469145 | L51: 30.99234575 | M51: 30.5335284 | N51: 25.63590422 | O51: 21.78875641 | P51: 18.78320687 | Q51: 16.42538959 | R51: 14.47298204 | S51: 12.84181815 | T51: 11.4645733 | U51: 11.17743919 | V51: 10.8870761 | W51: 10.59332767 | X51: 10.29603527 | Y51: 9.995038084 | Z51: 9.690173274 | AA51: 9.381276094 | AB51: 9.068180077 | AC51: 8.750717231 | AD51: 8.428718249 | AE51: 8.102012763 | AF51: 7.770429612 | AG51: 7.433797156 | AH51: 7.091943613 | AI51: 6.744697443 | AJ51: 6.391887765 | AK51: 6.033344821 | AL51: 5.668900488
B53: Cash Flow Waterfall
C54: Revenues from Interest Income on Subprime | I54: =I30 -> 74 | J54: =J30 -> 58.84230234 | K54: 46.75000285 | L54: 37.10838406 | M54: 29.42530295 | N54: 23.3068438 | O54: 18.43779444 | P54: 14.56599189 | Q54: 14.16414498 | R54: 13.75011015 | S54: 13.32298407 | T54: 12.88180757 | U54: 12.42556213 | V54: 11.95316609 | W54: 11.46347064 | X54: 10.95525559 | Y54: 10.4272248 | Z54: 9.87800138 | AA54: 9.306122585 | AB54: 8.71003435 | AC54: 8.088085507 | AD54: 7.438521638 | AE54: 6.759478519 | AF54: 6.048975173 | AG54: 5.304906465 | AH54: 4.525035238 | AI54: 3.706983955 | AJ54: 2.848225797 | AK54: 1.946075218 | AL54: 0.9976778862
C55: Add: Repayment of Subprime Debt | I55: =I27 -> 7.909020076 | J55: =J27 -> 6.821552259 | K55: 5.883608182 | L55: 5.074628753 | M55: 4.3768817 | N55: 3.775072887 | O55: 3.256011078 | P55: 3.461986339 | Q55: 3.680991594 | R55: 3.913851123 | S55: 4.161441345 | T55: 4.424694124 | U55: 4.704600275 | V55: 5.002213288 | W55: 5.318653301 | X55: 5.655111308 | Y55: 6.01285365 | Z55: 6.393226772 | AA55: 6.797662297 | AB55: 7.227682414 | AC55: 7.684905604 | AD55: 8.171052732 | AE55: 8.687953528 | AF55: 9.237553468 | AG55: 9.8219211 | AH55: 10.44325583 | AI55: 11.10389619 | AJ55: 11.80632867 | AK55: 12.55319702 | AL55: 13.34731226
C56: Add: Recoveries | I56: =I34 -> FALSE | J56: =J34 -> FALSE | K56: FALSE | L56: 0 | M56: 116.1855919 | N56: 92.38686118 | O56: 73.40103721 | P56: 58.26296712 | Q56: 46.19994919 | R56: 36.59350598 | S56: 28.94873054 | T56: 1.161342597 | U56: 1.129303451 | V56: 1.096292566 | W56: 1.062237919 | X56: 1.027063036 | Y56: 0.9906867102 | Z56: 0.9530227014 | AA56: 0.913979416 | AB56: 0.8734595674 | AC56: 0.831359815 | AD56: 0.7875703803 | AE56: 0.7419746386 | AF56: 0.6944486846 | AG56: 0.6448608715 | AH56: 0.5930713198 | AI56: 0.5389313954 | AJ56: 0.4822831557 | AK56: 0.4229587587 | AL56: 0.3607798366
D57: Total Reveneues | I57: =SUM(I54:I56) -> 81.90902008 | J57: =SUM(J54:J56) -> 65.6638546 | K57: 52.63361104 | L57: 42.18301282 | M57: 149.9877766 | N57: 119.4687779 | O57: 95.09484272 | P57: 76.29094535 | Q57: 64.04508576 | R57: 54.25746726 | S57: 46.43315596 | T57: 18.46784429 | U57: 18.25946585 | V57: 18.05167194 | W57: 17.84436186 | X57: 17.63742994 | Y57: 17.43076516 | Z57: 17.22425085 | AA57: 17.0177643 | AB57: 16.81117633 | AC57: 16.60435093 | AD57: 16.39714475 | AE57: 16.18940669 | AF57: 15.98097733 | AG57: 15.77168844 | AH57: 15.56136239 | AI57: 15.34981154 | AJ57: 15.13683762 | AK57: 14.92223099 | AL57: 14.70576998
C58: Less: Interest Paid | I58: =MAX(MIN(I57,I51),0) -> 35.096 | J58: =MAX(MIN(J57,J51),0) -> 33.17666618 | K58: 31.84469145 | L58: 30.99234575 | M58: 30.5335284 | N58: 25.63590422 | O58: 21.78875641 | P58: 18.78320687 | Q58: 16.42538959 | R58: 14.47298204 | S58: 12.84181815 | T58: 11.4645733 | U58: 11.17743919 | V58: 10.8870761 | W58: 10.59332767 | X58: 10.29603527 | Y58: 9.995038084 | Z58: 9.690173274 | AA58: 9.381276094 | AB58: 9.068180077 | AC58: 8.750717231 | AD58: 8.428718249 | AE58: 8.102012763 | AF58: 7.770429612 | AG58: 7.433797156 | AH58: 7.091943613 | AI58: 6.744697443 | AJ58: 6.391887765 | AK58: 6.033344821 | AL58: 5.668900488
D59: Cash Flow After Interest | I59: =I57-I58 -> 46.81302008 | J59: =J57-J58 -> 32.48718843 | K59: 20.78891958 | L59: 11.19066707 | M59: 119.4542482 | N59: 93.83287364 | O59: 73.30608632 | P59: 57.50773849 | Q59: 47.61969618 | R59: 39.78448521 | S59: 33.59133781 | T59: 7.003270988 | U59: 7.082026663 | V59: 7.164595843 | W59: 7.251034193 | X59: 7.341394669 | Y59: 7.435727074 | Z59: 7.534077579 | AA59: 7.636488205 | AB59: 7.742996254 | AC59: 7.853633695 | AD59: 7.968426501 | AE59: 8.087393923 | AF59: 8.210547714 | AG59: 8.337891281 | AH59: 8.469418774 | AI59: 8.6051141 | AJ59: 8.744949853 | AK59: 8.888886172 | AL59: 9.036869495
C60: Less: Repayment | I60: =MAX(MIN(I59,I47),0) -> 46.81302008 | J60: =MAX(MIN(J59,J47),0) -> 32.48718843 | K60: 20.78891958 | L60: 11.19066707 | M60: 119.4542482 | N60: 93.83287364 | O60: 73.30608632 | P60: 57.50773849 | Q60: 47.61969618 | R60: 39.78448521 | S60: 33.59133781 | T60: 7.003270988 | U60: 7.082026663 | V60: 7.164595843 | W60: 7.251034193 | X60: 7.341394669 | Y60: 7.435727074 | Z60: 7.534077579 | AA60: 7.636488205 | AB60: 7.742996254 | AC60: 7.853633695 | AD60: 7.968426501 | AE60: 8.087393923 | AF60: 8.210547714 | AG60: 8.337891281 | AH60: 8.469418774 | AI60: 8.6051141 | AJ60: 8.744949853 | AK60: 8.888886172 | AL60: 9.036869495
D61: Cash Flow After Repayment | I61: =I59-I60 -> 0 | J61: =J59-J60 -> 0 | K61: 0 | L61: 0 | M61: 0 | N61: 0 | O61: 0 | P61: 0 | Q61: 0 | R61: 0 | S61: 0 | T61: 0 | U61: 0 | V61: 0 | W61: 0 | X61: 0 | Y61: 0 | Z61: 0 | AA61: 0 | AB61: 0 | AC61: 0 | AD61: 0 | AE61: 0 | AF61: 0 | AG61: 0 | AH61: 0 | AI61: 0 | AJ61: 0 | AK61: 0 | AL61: 0
C62: Dividends | I62: =I61 -> 0 | J62: =J61 -> 0 | K62: 0 | L62: 0 | M62: 0 | N62: 0 | O62: 0 | P62: 0 | Q62: 0 | R62: 0 | S62: 0 | T62: 0 | U62: 0 | V62: 0 | W62: 0 | X62: 0 | Y62: 0 | Z62: 0 | AA62: 0 | AB62: 0 | AC62: 0 | AD62: 0 | AE62: 0 | AF62: 0 | AG62: 0 | AH62: 0 | AI62: 0 | AJ62: 0 | AK62: 0 | AL62: 0
C64: Equity cash Flow | H64: =-H43 -> -214 | I64: =I62 -> 0 | J64: =J62 -> 0 | K64: 0 | L64: 0 | M64: 0 | N64: 0 | O64: 0 | P64: 0 | Q64: 0 | R64: 0 | S64: 0 | T64: 0 | U64: 0 | V64: 0 | W64: 0 | X64: 0 | Y64: 0 | Z64: 0 | AA64: 0 | AB64: 0 | AC64: 0 | AD64: 0 | AE64: 0 | AF64: 0 | AG64: 0 | AH64: 0 | AI64: 0 | AJ64: 0 | AK64: 0 | AL64: 0
C65: Equitty IRR | H65: =IFERROR(IRR(64:64),FALSE) -> FALSE
C67: Debt Cash Flow | H67: =-H42 -> -856 | I67: =I60+I58 -> 81.90902008 | J67: =J60+J58 -> 65.6638546 | K67: 52.63361104 | L67: 42.18301282 | M67: 149.9877766 | N67: 119.4687779 | O67: 95.09484272 | P67: 76.29094535 | Q67: 64.04508576 | R67: 54.25746726 | S67: 46.43315596 | T67: 18.46784429 | U67: 18.25946585 | V67: 18.05167194 | W67: 17.84436186 | X67: 17.63742994 | Y67: 17.43076516 | Z67: 17.22425085 | AA67: 17.0177643 | AB67: 16.81117633 | AC67: 16.60435093 | AD67: 16.39714475 | AE67: 16.18940669 | AF67: 15.98097733 | AG67: 15.77168844 | AH67: 15.56136239 | AI67: 15.34981154 | AJ67: 15.13683762 | AK67: 14.92223099 | AL67: 14.70576998
C68: Debt IRR | H68: =IRR(67:67) -> 0.03499281353

Sheet Assmptions
A1: Assumptions
B2: Subprime Debt Assumptions
D3: Rate Charged on Sub-prime Loans | E3: 0.07
D4: Subprime Repayment Years | E4: 30
D5: Initial PD | E5: 0.05
D6: Years of High Default | E6: 5
D7: Stable PD | E7: 0.01
D8: Delay in Recoveries | E8: 3
D9: LGD | E9: 0.3
B10: Financial Structure Assumptions
D11: Amount of Subprime Loans | E11: 1000
D12: Loans/Equity | E12: 5
D13: Equity to Assets | E13: =1/E12 -> 0.2
D14: Interest Rate on Top-tier Debt | E14: 0.035
D15: Fees | E15: 0.07

Sheet Sheet2
